bitfinex-derivatives/quotes_SOLF0:USTF0_20250719
["timestamp","ask_amount","ask_price","bid_price","bid_amount"]
[1752955677835,3.29,177.69,177.65,3.19]
[1752955678135,3.29,177.69,177.65,8.8164]
[1752955678839,3.29,177.7,177.63,3.19]
[1752955679025,3.29,177.7,177.65,3.19]
[1752955679231,3.29,177.7,177.66,7.98904013]
[1752955679432,2.40393635,177.72,177.67,4.79904013]
[1752955679741,3.29,177.7,177.68,7.98904013]
[1752955679930,3.29,177.7,177.69,7.98904013]
[1752955680236,3.29,177.7,177.69,13.61434013]
[1752955680438,3.29,177.7,177.69,10.42434013]
[1752955680938,3.29,177.7,177.69,4.79904013]
[1752955681732,3.29,177.72,177.69,13.61434013]
[1752955681938,3.29,177.71,177.7,4.79904013]
[1752955682136,3.29,177.71,177.7,7.98904013]
[1752955682332,3.29,177.71,177.7,18.29479069]
[1752955682533,3.29,177.71,177.7,13.61404013]
[1752955682835,3.29,177.71,177.7,4.79904013]
[1752955683631,3.29,177.71,177.65,4.68075056]
[1752955683834,2.40393635,177.7,177.66,9.64013475]
[1752955684033,3.29,177.69,177.67,4.95938419]
[1752955684230,3.29,177.69,177.68,9.64013475]
[1752955684737,3.29,177.69,177.68,15.26573475]
[1752955684932,3.29,177.69,177.68,9.64013475]
[1752955685128,3.29,177.69,177.68,4.95938419]
[1752955685731,5.69393635,177.69,177.68,4.95938419]
[1752955686133,11.31923635,177.69,177.68,4.95938419]
[1752955687044,3.29,177.69,177.68,4.95938419]
[1752955687335,5.69393635,177.69,177.68,4.95938419]
[1752955687540,5.6262,177.67,177.62,4.68075056]
[1752955687741,5.69393635,177.66,177.63,4.81368076]
[1752955688035,5.69393635,177.66,177.62,3.19]
[1752955688036,8.9165,177.65,177.64,4.81368076]
[1752955688239,5.69393635,177.65,177.64,4.81368076]
[1752955688632,3.29,177.65,177.64,4.81368076]
[1752955689938,2.40393635,177.68,177.64,13.63058076]
[1752955690236,2.40393635,177.69,177.65,8.00368076]
[1752955690444,3.29,177.66,177.64,5.6269]
[1752955690740,3.29,177.66,177.65,4.76872874]
[1752955691537,3.29,177.66,177.65,10.39522874]
[1752955691842,3.29,177.66,177.65,4.76872874]
[1752955692439,3.29,177.66,177.65,7.95872874]
[1752955693242,3.29,177.66,177.65,13.58522874]
[1752955693845,3.29,177.68,177.66,5.6262]
[1752955694137,2.40393635,177.7,177.67,4.76872874]
[1752955694338,8.02823635,177.72,177.69,5.6252]
[1752955694535,3.29,177.71,177.7,4.76872874]
[1752955695538,3.29,177.71,177.7,10.39372874]
[1752955695743,3.29,177.71,177.7,4.76872874]
[1752955696245,3.29,177.71,177.7,7.95872874]
[1752955696447,3.29,177.71,177.7,13.58372874]
[1752955697642,2.40393635,177.74,177.71,5.6245]
[1752955697848,3.29,177.72,177.71,8.8145]
[1752955698044,3.29,177.72,177.71,13.56650022]
[1752955698543,3.29,177.72,177.71,4.75200022]
[1752955700745,3.29,177.72,177.71,9.43275078]
[1752955701452,3.29,177.72,177.71,15.05735078]
[1752955701852,3.15,177.74,177.72,8.814]
[1752955702047,3.15,177.74,177.73,4.75200022]
[1752955703050,3.15,177.76,177.74,3.19]
[1752955703249,3.15,177.76,177.75,9.41854358]
[1752955703744,3.15,177.76,177.75,4.75200022]
[1752955705044,3.15,177.76,177.75,7.94200022]
[1752955705546,3.15,177.76,177.75,4.75200022]
[1752955706349,3.15,177.76,177.75,13.56540022]
[1752955706553,3.15,177.78,177.75,7.94200022]
[1752955706756,3.15,177.77,177.76,7.94200022]
[1752955707054,3.15,177.77,177.76,13.56500022]
[1752955707254,3.15,177.77,177.76,7.94200022]
[1752955707452,2.40393635,177.8,177.76,4.75200022]
[1752955707651,3.15,177.78,177.77,7.94200022]
[1752955707852,3.15,177.78,177.77,4.75200022]
[1752955709254,8.7725,177.78,177.75,5.6232]
[1752955709561,3.15,177.77,177.75,5.6232]
[1752955709753,3.15,177.77,177.72,3.19]
[1752955710057,9.0,177.82,177.72,3.19]
[1752955710058,3.15,177.75,177.73,4.56878471]
[1752955710256,3.15,177.75,177.74,4.56878471]
[1752955710457,2.40393635,177.76,177.7,8.8149]
[1752955710654,3.15,177.73,177.71,4.57172746]
[1752955710852,3.15,177.73,177.72,4.57172746]
[1752955711553,8.7741,177.73,177.72,4.57172746]
[1752955714565,3.15,177.72,177.69,5.625]
[1752955714860,3.15,177.71,177.7,4.58161219]
[1752955715453,3.15,177.71,177.68,8.8156]
[1752955715653,11.17893635,177.7,177.66,5.6261]
[1752955715854,3.15,177.69,177.67,4.58566749]
[1752955716053,2.40393635,177.68,177.64,5.6267]
[1752955716253,3.15,177.67,177.65,4.58705783]
[1752955716454,3.15,177.67,177.66,4.58802845]
[1752955716863,3.15,177.67,177.64,8.8167]
[1752955717062,3.15,177.67,177.65,4.5886319]
[1752955717262,3.15,177.67,177.62,3.19]
[1752955717558,3.15,177.67,177.64,5.6267]
[1752955717765,3.15,177.67,177.65,4.58930023]
[1752955717960,3.15,177.67,177.62,3.19]
[1752955718155,3.15,177.66,177.64,5.6268]
[1752955718961,8.02963635,177.68,177.64,5.6268]
[1752955719157,3.15,177.65,177.64,8.8168]
[1752955720561,3.15,177.69,177.67,5.6259]
[1752955720866,5.625,177.7,177.67,3.19]
[1752955720867,3.15,177.68,177.67,3.19]
[1752955721359,3.15,177.68,177.67,8.8159]
[1752955723466,3.15,177.68,177.67,3.19]
[1752955724261,3.15,177.68,177.67,5.6259]
[1752955724467,3.15,177.67,177.65,3.19]
[1752955724760,5.6253,177.69,177.65,3.19]
[1752955724959,3.15,177.66,177.63,3.19]
[1752955725465,3.15,177.66,177.64,5.6266]
[1752955726165,3.15,177.66,177.63,8.8172]
[1752955726365,3.15,177.66,177.63,3.19]
[1752955727164,3.15,177.66,177.64,5.6269]
[1752955728070,3.15,177.66,177.63,8.8171]
[1752955728269,3.15,177.66,177.63,3.19]
[1752955728973,3.15,177.66,177.63,8.8169]
[1752955730472,3.15,177.66,177.64,5.6268]
[1752955730674,3.15,177.66,177.63,3.19]
[1752955730872,3.15,177.66,177.63,8.817]
[1752955731073,3.15,177.66,177.63,3.19]
[1752955731969,3.15,177.66,177.64,5.6268]
[1752955732272,3.15,177.66,177.64,8.7468]
[1752955733280,3.17,177.65,177.64,8.7468]
[1752955734679,3.17,177.65,177.63,5.6271]
[1752955734980,5.626,177.67,177.63,8.7471]
[1752955734981,3.17,177.64,177.63,8.7471]
[1752955735278,3.17,177.64,177.63,13.33577533]
[1752955736079,3.17,177.64,177.63,10.21577533]
[1752955736681,3.17,177.64,177.63,13.33577533]
[1752955738177,3.17,177.64,177.63,4.58867533]
[1752955738378,3.17,177.64,177.58,4.68246568]
[1752955738679,3.17,177.64,177.6,3.12]
[1752955738978,5.6269,177.64,177.62,3.12]
[1752955739184,3.17,177.63,177.58,3.12]
[1752955739380,3.17,177.61,177.59,4.58907364]
[1752955739583,3.17,177.61,177.57,110.76]
[1752955739885,3.17,177.59,177.55,8.7497]
[1752955740083,5.6286,177.59,177.56,4.51903051]
[1752955740280,3.17,177.58,177.55,3.12]
[1752955740486,3.17,177.58,177.56,4.51872521]
[1752955740680,2.40393635,177.6,177.51,495.24640203]
[1752955740881,3.17,177.57,177.54,3.12]
[1752955741081,3.17,177.57,177.55,4.51872658]
[1752955741387,3.17,177.58,177.56,4.51592597]
[1752955741585,3.17,177.57,177.56,3.12]
[1752955741787,3.17,177.57,177.56,7.63592597]
[1752955742288,3.17,177.64,177.58,3.12]
[1752955742788,3.17,177.63,177.62,3.12]
[1752955743086,3.17,177.63,177.6,8.7479]
[1752955743985,3.17,177.63,177.61,5.6278]
[1752955744389,3.17,177.62,177.52,3.12]
[1752955744588,3.17,177.62,177.6,5.6281]
[1752955745289,3.17,177.62,177.59,5.6283]
[1752955745590,3.17,177.61,177.55,3.12]
[1752955745900,3.17,177.6,177.56,7.6298748]
[1752955746081,3.17,177.6,177.54,2.40393635]
[1752955746280,3.17,177.61,177.55,4.50950899]
[1752955746485,3.17,177.61,177.57,3.12]
[1752955746689,3.17,177.62,177.57,3.12]
[1752955747188,3.17,177.62,177.59,8.7482]
[1752955748086,2.40393635,177.63,177.6,5.6279]
[1752955748390,3.17,177.62,177.57,3.12]
[1752955748589,3.17,177.61,177.57,3.12]
[1752955749091,3.17,177.61,177.6,3.12]
[1752955749892,3.17,177.61,177.6,8.7481]
[1752955750787,3.17,177.61,177.59,5.6284]
[1752955750987,3.17,177.6,177.59,8.7484]
[1752955752186,3.17,177.62,177.6,3.12]
[1752955752391,3.17,177.61,177.6,3.12]
[1752955752795,3.17,177.61,177.6,8.7481]
[1752955753692,2.40393635,177.65,177.6,3.12]
[1752955753891,3.17,177.63,177.6,3.12]
[1752955754289,3.17,177.63,177.62,5.6275]
[1752955754494,3.17,177.63,177.62,8.7475]
[1752955755293,3.17,177.64,177.58,2.40393635]
[1752955755494,3.17,177.63,177.6,3.12]
[1752955755796,3.17,177.63,177.62,8.7473]
[1752955755996,3.17,177.63,177.62,13.26463897]
[1752955758092,2.40393635,177.69,177.65,5.6265]
[1752955758297,5.6261,177.67,177.63,3.12]
[1752955758494,2.40393635,177.69,177.65,3.12]
[1752955758694,3.17,177.68,177.65,8.7465]
[1752955758895,5.6258,177.68,177.65,8.7465]
[1752955759101,3.17,177.67,177.65,8.7465]
[1752955759300,3.17,177.67,177.66,4.52291753]
[1752955764800,5.57393635,177.67,177.66,4.52291753]
[1752955765098,3.02,177.66,177.6,3.1]
[1752955765304,5.42393635,177.65,177.61,4.48313172]
[1752955765504,3.02,177.64,177.62,4.48313172]
[1752955765700,3.02,177.64,177.63,4.48313172]
[1752955765904,8.6469,177.64,177.63,4.48313172]
[1752955767309,5.6273,177.63,177.59,8.7283]
[1752955767508,3.02,177.62,177.6,4.48509157]
[1752955767806,3.02,177.62,177.61,4.48509157]
[1752955768604,3.02,177.62,177.61,7.58509157]
[1752955769208,3.02,177.62,177.61,13.21289157]
[1752955770103,30.58103635,177.75,177.62,3.1]
[1752955770104,3.02,177.64,177.62,3.1]
[1752955770409,3.02,177.64,177.61,4.48509157]
[1752955770410,3.02,177.64,177.63,4.48509157]
[1752955770609,3.02,177.64,177.62,5.6275]
[1752955771208,3.02,177.64,177.61,8.7277]
[1752955771411,3.02,177.64,177.62,4.47928743]
[1752955771710,3.02,177.64,177.61,3.1]
[1752955771913,3.02,177.64,177.62,4.47928743]
[1752955772110,3.02,177.64,177.61,3.1]
[1752955772311,3.02,177.64,177.62,7.57917715]
[1752955772512,3.02,177.64,177.62,8.7273]
[1752955772714,3.02,177.63,177.62,8.7273]
[1752955773013,3.02,177.63,177.62,13.20643575]
[1752955774410,3.02,177.65,177.64,5.6269]
[1752955774610,3.02,177.66,177.64,3.1]
[1752955775110,3.02,177.66,177.63,5.6269]
[1752955775813,3.02,177.66,177.64,4.47872146]
[1752955776014,3.02,177.66,177.63,5.6269]
[1752955776215,3.02,177.66,177.63,8.7269]
[1752955776415,3.02,177.66,177.64,4.47853036]
[1752955776615,3.02,177.66,177.64,5.6268]
[1752955777518,3.02,177.66,177.63,8.7271]
[1752955777816,3.02,177.66,177.64,4.47853245]
[1752955778019,3.02,177.66,177.64,5.6268]
[1752955778520,3.02,177.66,177.63,3.1]
[1752955778722,3.02,177.66,177.64,4.47872303]
[1752955778918,3.02,177.66,177.63,3.1]
[1752955779123,3.02,177.66,177.64,4.47853539]
[1752955779417,3.02,177.66,177.63,3.1]
[1752955779621,3.02,177.66,177.64,10.10547207]
[1752955779823,3.02,177.66,177.64,5.6269]
[1752955780225,3.02,177.66,177.63,8.7271]
[1752955780525,3.02,177.66,177.64,4.47857594]
[1752955780725,3.02,177.66,177.63,8.7271]
[1752955780927,3.02,177.66,177.64,4.47857594]
[1752955781121,3.02,177.66,177.63,8.7271]
[1752955781424,3.02,177.66,177.64,4.47865659]
[1752955781628,3.02,177.66,177.63,8.7271]
[1752955781826,3.02,177.66,177.64,4.47856933]
[1752955782124,3.02,177.66,177.63,8.7271]
[1752955782326,3.02,177.66,177.64,4.47865068]
[1752955782518,3.02,177.66,177.63,8.7271]
[1752955782721,3.02,177.66,177.64,4.47864249]
[1752955782918,3.02,177.66,177.63,8.7271]
[1752955783127,3.02,177.66,177.64,4.47864252]
[1752955783318,3.02,177.66,177.64,5.6268]
[1752955786148,3.02,177.64,177.59,3.1]
[1752955786435,2.40393635,177.65,177.61,3.1]
[1752955786436,3.02,177.65,177.61,3.1]
[1752955786639,3.02,177.68,177.64,3.1]
[1752955786840,3.02,177.68,177.65,7.57924319]
[1752955787042,3.02,177.68,177.66,4.47924319]
[1752955787240,3.02,177.68,177.67,4.47924319]
[1752955787740,3.02,177.68,177.67,4.41406777]
[1752955789339,3.02,177.68,177.67,4.41409824]
[1752955789642,3.02,177.68,177.67,4.41391453]
[1752955791646,3.02,177.68,177.67,10.03981453]
[1752955792641,3.02,177.68,177.67,13.22981453]
[1752955793246,3.02,177.68,177.67,7.60391453]
[1752955793742,3.02,177.68,177.67,4.41391453]
[1752955795041,8.6456,177.68,177.67,4.41391453]
[1752955796847,3.12,177.67,177.64,8.8166]
[1752955797045,3.12,177.67,177.65,4.41694588]
[1752955797240,3.12,177.67,177.66,4.41694588]
[1752955798643,11.14983635,177.67,177.66,4.41694588]
[1752955798849,3.12,177.66,177.6,3.19]
[1752955799046,3.12,177.67,177.62,3.19]
[1752955799351,3.12,177.67,177.65,3.19]
[1752955799746,8.02973635,177.68,177.65,8.8164]
[1752955799946,3.12,177.66,177.65,3.19]
[1752955800148,3.12,177.66,177.63,3.19]
[1752955800348,3.12,177.66,177.64,10.02037761]
[1752955800649,8.02963635,177.68,177.64,8.8167]
[1752955800846,8.02963635,177.68,177.65,7.58380334]
[1752955801047,8.02963635,177.68,177.65,3.19]
[1752955801247,3.12,177.67,177.65,3.19]
[1752955801846,5.6259,177.67,177.61,3.19]
[1752955802046,3.12,177.67,177.63,3.19]
[1752955802252,3.12,177.67,177.65,3.19]
[1752955802454,3.12,177.66,177.65,8.8164]
[1752955802751,3.12,177.66,177.65,13.21025362]
[1752955803053,3.12,177.66,177.65,10.02025362]
[1752955803554,3.12,177.66,177.65,5.6264]
[1752955803850,3.12,177.65,177.6,3.19]
[1752955804151,3.12,177.65,177.62,3.19]
[1752955804351,3.12,177.65,177.64,5.6267]
[1752955804552,3.12,177.65,177.6,3.19]
[1752955804847,3.12,177.65,177.62,5.6274]
[1752955805856,3.12,177.64,177.62,5.6274]
[1752955807049,8.7469,177.64,177.6,8.8178]
[1752955807246,3.12,177.63,177.61,4.39597745]
[1752955807449,3.12,177.63,177.62,4.39597745]
[1752955811557,3.12,177.63,177.62,13.21347745]
[1752955812055,5.626,177.67,177.64,5.6268]
[1752955812255,3.12,177.65,177.64,8.8168]
[1752955812452,3.12,177.65,177.64,3.19]
[1752955812654,3.12,177.65,177.62,8.8174]
[1752955812855,3.12,177.65,177.63,4.39522454]
[1752955813053,3.12,177.65,177.62,8.8174]
[1752955813351,3.12,177.65,177.63,4.39588875]
[1752955813553,3.12,177.65,177.62,5.6274]
[1752955813749,3.12,177.65,177.63,4.39588875]
[1752955813956,3.12,177.65,177.63,5.6271]
[1752955814258,3.12,177.64,177.62,3.19]
[1752955814555,3.12,177.64,177.58,7.09609799]
[1752955814556,3.12,177.64,177.63,3.19]
[1752955814758,3.12,177.64,177.63,7.58594076]
[1752955815157,3.12,177.64,177.63,4.39594076]
[1752955815957,3.12,177.64,177.63,10.02314076]
[1752955817059,3.12,177.64,177.63,5.6272]
[1752955817756,3.12,177.64,177.63,10.02361986]
[1752955819161,4.65356144,177.64,177.63,10.02361986]
[1752955819558,4.65356144,177.64,177.62,8.8174]
[1752955819559,1.53356144,177.64,177.62,8.8174]
[1752955819864,3.12,177.63,177.62,8.8174]
[1752955820158,3.12,177.63,177.62,4.39735862]
[1752955820366,3.12,177.63,177.56,3.19]
[1752955820665,4.65356144,177.57,177.56,8.8192]
[1752955820861,4.65356144,177.57,177.56,3.19]
[1752955821653,9.0,177.62,177.57,3.19]
[1752955821860,3.12,177.61,177.55,7.88216164]
[1752955822059,3.12,177.6,177.58,3.19]
[1752955822261,3.12,177.59,177.58,3.19]
[1752955822868,3.12,177.59,177.51,378.26]
[1752955822869,3.12,177.59,177.56,3.19]
[1752955823164,3.12,177.56,177.55,3.19]
[1752955824761,3.12,177.56,177.55,8.8197]
[1752955825066,3.12,177.58,177.55,3.19]
[1752955825366,3.12,177.57,177.56,3.19]
[1752955825867,3.12,177.57,177.56,8.8192]
[1752955826066,3.12,177.57,177.56,3.19]
[1752955826964,3.12,177.57,177.52,3.19]
[1752955827266,3.12,177.57,177.54,8.8199]
[1752955828070,8.7491,177.57,177.54,8.8199]
[1752955828368,3.12,177.55,177.53,8.8203]
[1752955828762,3.12,177.55,177.53,5.6303]
[1752955829367,3.12,177.55,177.53,8.8203]
[1752955829670,3.12,177.55,177.54,5.63]
[1752955830067,3.12,177.55,177.52,3.19]
[1752955830265,3.12,177.55,177.53,5.6301]
[1752955830571,3.12,177.53,177.49,3.19]
[1752955830763,3.12,177.53,177.5,3.19]
[1752955830965,3.12,177.53,177.49,3.19]
[1752955831165,9.0,177.54,177.48,107.28]
[1752955831166,9.0,177.54,177.51,3.19]
[1752955831366,9.0,177.54,177.53,8.8203]
[1752955832171,2.39782842,177.6,177.57,5.6291]
[1752955832172,3.12,177.58,177.57,5.6291]
[1752955832469,3.12,177.58,177.57,8.8191]
[1752955832771,3.12,177.58,177.57,3.19]
[1752955833773,3.12,177.58,177.56,5.6293]
[1752955834071,3.12,177.57,177.56,8.8193]
[1752955835671,3.12,177.57,177.55,5.6296]
[1752955835968,3.12,177.56,177.55,8.8196]
[1752955840172,3.12,177.56,177.55,3.19]
[1752955840869,3.12,177.56,177.55,8.8197]
[1752955842769,3.12,177.57,177.55,8.8197]
[1752955842973,3.12,177.57,177.56,8.8194]
[1752955843973,5.6286,177.59,177.56,8.8194]
[1752955844173,3.12,177.58,177.56,3.19]
[1752955844572,3.12,177.58,177.56,5.6292]
[1752955844768,3.12,177.58,177.57,3.19]
[1752955844974,4.65457183,177.58,177.57,3.19]
[1752955845773,3.12,177.57,177.54,1.53457183]
[1752955845974,3.12,177.57,177.55,3.19]
[1752955846174,7.16337183,177.58,177.56,3.19]
[1752955846876,3.12,177.57,177.56,3.19]
[1752955847175,3.12,177.57,177.56,8.8194]
[1752955848176,3.12,177.57,177.56,13.15716542]
[1752955851378,3.07,177.65,177.59,5.6282]
[1752955851574,4.60457183,177.6,177.59,5.6282]
[1752955851771,3.07,177.59,177.55,1.53457183]
[1752955851976,3.07,177.59,177.57,3.08]
[1752955852676,3.07,177.59,177.58,5.6288]
[1752955853372,3.07,177.59,177.57,5.6289]
[1752955853976,3.07,177.59,177.58,5.6288]
[1752955855379,3.07,177.59,177.57,8.7089]
[1752955856281,7.16287183,177.6,177.58,5.6287]
[1752955856981,3.07,177.59,177.58,5.6287]
[1752955857885,3.07,177.59,177.58,13.05295312]
[1752955858689,3.07,177.61,177.6,8.708]
[1752955858990,5.6266,177.65,177.62,5.6273]
[1752955859285,3.07,177.63,177.62,8.7073]
[1752955860086,3.07,177.63,177.62,5.6273]
[1752955860283,3.07,177.63,177.61,5.6275]
[1752955860483,3.07,177.63,177.61,8.7075]
[1752955861288,1.53457183,177.63,177.62,5.6275]
[1752955861487,1.53457183,177.63,177.62,8.7075]
[1752955861988,3.07,177.63,177.62,8.7075]
[1752955862589,9.4538454,177.74,177.63,3.08]
[1752955862888,3.07,177.63,177.61,1.53457183]
[1752955863089,1.53457183,177.65,177.64,5.6268]
[1752955863284,4.60457183,177.65,177.64,5.6268]
[1752955863685,4.60457183,177.65,177.64,8.7068]
[1752955864089,3.07,177.65,177.64,8.7068]
[1752955865089,3.07,177.65,177.63,5.6269]
[1752955865387,3.07,177.64,177.63,3.08]
[1752955865788,1.53457183,177.68,177.63,5.88535667]
[1752955865987,3.07,177.67,177.65,1.53457183]
[1752955866187,3.07,177.68,177.65,1.53457183]
[1752955866385,3.07,177.68,177.66,3.08]
[1752955866588,3.07,177.68,177.67,8.7057]
[1752955866893,3.07,177.69,177.67,3.08]
[1752955867092,3.07,177.69,177.68,8.7053]
[1752955867393,4.60457183,177.71,177.68,3.08]
[1752955867594,3.07,177.7,177.69,8.7053]
[1752955868194,3.07,177.7,177.68,5.6254]
[1752955868396,3.07,177.69,177.68,8.7054]
[1752955869698,3.07,177.71,177.69,5.625]
[1752955869997,3.07,177.71,177.69,8.705]
[1752955870598,3.07,177.7,177.68,5.6255]
[1752955870797,3.07,177.7,177.68,8.7055]
[1752955871095,3.07,177.69,177.68,8.7055]
[1752955871296,5.625,177.7,177.67,5.6258]
[1752955871497,5.625,177.7,177.68,3.08]
[1752955871498,3.07,177.69,177.68,3.08]
[1752955872198,3.07,177.69,177.67,8.7058]
[1752955872799,3.07,177.68,177.67,3.08]
[1752955873194,3.07,177.68,177.67,8.7058]
[1752955879506,2.39419805,177.73,177.71,3.08]
[1752955879904,8.01839805,177.73,177.71,3.08]
[1752955880101,5.6242,177.73,177.71,3.08]
[1752955880301,5.6242,177.73,177.7,5.6248]
[1752955880502,5.6242,177.73,177.71,3.16]
[1752955881407,3.08,177.72,177.71,3.16]
[1752955881810,3.08,177.72,177.71,8.7846]
[1752955882612,3.08,177.73,177.71,3.16]
[1752955882906,3.08,177.73,177.67,3.16]
[1752955883101,3.08,177.72,177.7,8.7848]
[1752955883413,3.08,177.75,177.71,3.16]
[1752955883615,5.6234,177.75,177.68,2.39419805]
[1752955883811,3.08,177.74,177.73,3.16]
[1752955884005,3.08,177.74,177.69,3.16]
[1752955884408,8.7037,177.74,177.71,5.6244]
[1752955884603,5.6237,177.74,177.71,5.6244]
[1752955884906,3.08,177.73,177.72,3.16]
[1752955887604,3.08,177.73,177.72,8.7843]
[1752955888116,3.08,177.73,177.72,3.16]
[1752955888814,8.704,177.73,177.72,3.16]
[1752955889715,3.08,177.73,177.72,3.16]
[1752955890411,3.08,177.73,177.66,3.16]
[1752955890810,5.6245,177.72,177.69,5.6252]
[1752955891011,1.53237676,177.71,177.7,3.16]
[1752955891313,11.2439,177.8,177.7,3.16]
[1752955891514,1.53237676,177.71,177.7,8.7849]
[1752955891714,4.61237676,177.71,177.7,3.16]
[1752955893813,7.15697676,177.71,177.69,3.16]
[1752955894012,3.08,177.72,177.69,3.16]
[1752955894212,4.61237676,177.71,177.69,3.16]
[1752955894510,3.08,177.7,177.69,3.16]
[1752955895112,3.08,177.7,177.69,8.7853]
[1752955895313,3.08,177.71,177.69,3.16]
[1752955895709,3.08,177.71,177.7,5.6249]
[1752955896014,3.08,177.71,177.7,8.7849]
[1752955897120,3.08,177.74,177.71,3.16]
[1752955897313,3.08,177.74,177.73,3.16]
[1752955897515,3.08,177.76,177.73,8.7837]
[1752955897715,3.08,177.76,177.74,3.16]
[1752955898216,1.53237676,177.77,177.74,3.16]
[1752955898217,3.08,177.75,177.74,3.16]
[1752955898819,3.08,177.75,177.74,8.7837]
[1752955899021,3.08,177.75,177.74,3.16]
[1752955899919,4.61237676,177.76,177.74,3.16]
[1752955900116,3.08,177.76,177.74,3.16]
[1752955900316,7.15527676,177.77,177.74,3.16]
[1752955900317,3.08,177.75,177.74,3.16]
[1752955902421,8.7029,177.77,177.75,3.16]
[1752955902724,3.08,177.77,177.75,3.16]
[1752955903020,3.08,177.77,177.75,5.6232]
[1752955903221,3.08,177.77,177.76,3.16]
[1752955904525,3.08,177.77,177.74,3.16]
[1752955905527,2.39271857,177.76,177.72,3.16]
[1752955905717,3.08,177.75,177.73,3.16]
[1752955906317,3.08,177.75,177.74,3.16]
[1752955906924,8.7035,177.75,177.74,3.16]
[1752955907325,3.08,177.74,177.73,3.16]
[1752955907826,8.7037,177.74,177.73,3.16]
[1752955908523,3.08,177.74,177.73,3.16]
[1752955909028,5.6237,177.74,177.72,3.16]
[1752955909227,3.08,177.73,177.71,3.16]
[1752955909428,3.08,177.73,177.7,3.16]
[1752955909630,3.08,177.72,177.71,7.49555459]
[1752955909928,3.08,177.72,177.71,3.16]
[1752955910926,3.08,177.72,177.71,8.7846]
[1752955911827,3.08,177.72,177.71,3.16]
[1752955913332,3.26,177.73,177.72,3.29]
[1752955918629,3.26,177.73,177.72,8.9143]
[1752955919332,3.26,177.73,177.72,3.29]
[1752955920434,3.26,177.73,177.72,8.9143]
[1752955920733,3.26,177.84,177.72,4.33948757]
[1752955920929,4.79119864,177.78,177.74,1.53119864]
[1752955921130,73.72143322,177.84,177.75,3.29]
[1752955921131,3.26,177.77,177.75,3.29]
[1752955921334,3.26,177.79,177.76,4.82119864]
[1752955921635,3.26,177.78,177.77,3.29]
[1752955923536,3.26,177.78,177.76,5.6228]
[1752955923738,3.26,177.78,177.76,8.9128]
[1752955925437,3.26,177.78,177.76,5.6228]
[1752955925638,3.26,177.78,177.77,8.9127]
[1752955927846,3.26,177.78,177.77,3.29]
[1752955929846,3.26,177.78,177.77,8.9127]
[1752955940463,3.06,177.83,177.8,3.26]
[1752955941161,8.6817,177.81,177.8,3.26]
[1752955942857,5.6218,177.8,177.79,3.26]
[1752955943063,8.6818,177.8,177.79,3.26]